bitfinex/quotes_ETHUSD_20220212
["timestamp","ask_amount","ask_price","bid_price","bid_amount"]
[1644655780776,0.79653141,2942.0,2941.7,0.02960466]
[1644655780977,0.00880357,2941.9,2941.7,0.02960466]
[1644655781175,0.00880357,2941.9,2941.7,1.02960466]
[1644655781476,0.00880357,2941.9,2941.7,0.02960466]
[1644655781978,0.79653141,2942.0,2941.7,0.02960466]
[1644655782183,0.00880352,2941.9,2941.8,0.84993]
[1644655782379,0.00880352,2941.9,2941.8,1.24123]
[1644655783083,0.79653141,2942.0,2941.8,1.24123]
[1644655783529,0.80533487,2942.0,2941.8,1.24123]
[1644655783731,0.80533487,2942.0,2941.8,0.84993]
[1644655784330,0.79653141,2942.0,2941.9,3.19672195]
[1644655784530,0.79653141,2942.0,2941.9,3.16253518]
[1644655784731,0.80533481,2942.0,2941.9,4.16253518]
[1644655785532,0.79653141,2942.0,2941.9,4.16253518]
[1644655785931,0.79653141,2942.0,2941.9,1.0]
[1644655786133,0.79653141,2942.0,2941.8,0.87958402]
[1644655786333,0.79653141,2942.0,2941.9,3.16537747]
[1644655786734,0.79653141,2942.0,2941.9,4.16537747]
[1644655787579,0.79653141,2942.0,2941.9,1.0]
[1644655788781,0.79653141,2942.0,2941.8,3.17712084]
[1644655789182,0.79653141,2942.0,2941.9,1.0]
[1644655789382,0.80533481,2942.0,2941.9,1.0]
[1644655790385,0.79653141,2942.0,2941.9,1.0]
[1644655791223,0.79653141,2942.0,2941.8,0.02965402]
[1644655791422,0.79653141,2942.0,2941.8,3.18518485]
[1644655791924,0.80533481,2942.0,2941.9,1.0]
[1644655792324,0.80533481,2942.0,2941.8,0.02965402]
[1644655792525,0.80633481,2942.0,2941.8,0.02965402]
[1644655792724,0.79753141,2942.0,2941.8,0.02965402]
[1644655793533,2.0918718,2942.0,2941.8,0.02965402]
[1644655793733,0.001,2941.9,2941.8,0.02965402]
[1644655794230,0.1497,2941.9,2941.8,0.02965402]
[1644655794428,0.1497,2941.9,2941.8,0.01887497]
[1644655794677,0.1497,2941.9,2941.4,0.00332558]
[1644655794874,0.86485007,2941.6,2941.4,0.00332558]
[1644655795076,0.86485007,2941.6,2941.3,0.80474632]
[1644655795275,0.86485007,2941.5,2941.3,0.030222]
[1644655795474,0.86485007,2941.5,2941.4,0.00881218]
[1644655796487,0.86485007,2941.5,2941.1,0.02063558]
[1644655796488,5.1482,2941.5,2941.1,0.02063558]
[1644655796726,5.1482,2941.5,2941.3,0.00881224]
[1644655796727,0.492,2941.4,2941.3,0.00881224]
[1644655796883,0.6401,2941.4,2941.3,0.00881224]
[1644655797189,1.01400778,2941.4,2941.3,0.00881224]
[1644655797483,0.86565912,2941.4,2941.3,0.00881224]
[1644655797682,0.86565912,2941.4,2941.1,0.02063558]
[1644655797881,0.86565912,2941.4,2941.2,0.00881235]
[1644655798730,0.86565912,2941.4,2941.1,0.02063558]
[1644655799131,0.86565912,2941.4,2941.2,0.00881241]
[1644655799731,0.90773255,2941.4,2941.2,0.00881241]
[1644655799931,0.90773255,2941.4,2941.1,0.02063558]
[1644655800432,0.86465912,2941.3,2941.2,0.00881241]
[1644655800633,0.90773255,2941.4,2941.2,0.00881241]
[1644655801132,0.90773255,2941.4,2941.1,0.02063558]
[1644655801337,0.04307343,2941.4,2941.1,0.02063558]
[1644655801632,0.04207343,2941.4,2941.2,0.00881241]
[1644655802483,0.04207343,2941.4,2941.1,3.27698215]
[1644655802484,0.04207343,2941.4,2941.1,4.12705215]
[1644655802678,0.04207343,2941.4,2941.2,2.45562494]
[1644655802879,0.04207343,2941.4,2941.2,1.30881241]
[1644655803179,0.04207343,2941.4,2941.3,1.44679701]
[1644655803779,0.04207343,2941.4,2941.3,1.61659701]
[1644655803985,0.04207343,2941.4,2941.3,0.1698]
[1644655804582,0.04207343,2941.4,2941.3,3.64865906]
[1644655804781,0.04207343,2941.4,2941.3,4.64865906]
[1644655809234,0.04207343,2941.4,2941.3,6.09543782]
[1644655809535,0.04207343,2941.4,2941.3,1.0]
[1644655809778,0.04207343,2941.4,2941.2,0.00881235]
[1644655810578,0.04207343,2941.4,2941.3,1.39678092]
[1644655810778,0.04207343,2941.4,2941.3,1.56658092]
[1644655811678,0.04207343,2941.4,2941.2,1.30881241]
[1644655811882,0.04207343,2941.4,2941.3,3.4565312]
[1644655812079,0.04207343,2941.4,2941.3,0.1698]
[1644655812279,0.04207343,2941.4,2941.3,1.1698]
[1644655812480,0.04207343,2941.4,2941.3,0.1698]
[1644655812681,0.04207343,2941.4,2941.2,1.00881241]
[1644655813281,0.04207343,2941.4,2941.1,1.02063558]
[1644655813530,0.04207343,2941.4,2941.2,0.00881241]
[1644655814525,0.04207343,2941.4,2941.1,0.02063558]
[1644655814725,0.04207343,2941.4,2941.2,0.00833195]
[1644655815126,0.03661731,2941.4,2941.2,0.00833195]
[1644655815727,0.03661731,2941.4,2941.1,1.02063558]
[1644655815926,0.03661731,2941.4,2941.2,0.00833195]
[1644655816929,0.03661731,2941.4,2941.1,1.19043558]
[1644655817181,0.03661731,2941.4,2941.2,0.00833195]
[1644655818074,0.03661731,2941.4,2941.1,0.02063558]
[1644655818478,0.03661731,2941.4,2941.2,0.00823476]
[1644655819279,0.03661731,2941.4,2941.1,0.02063558]
[1644655819680,0.03661731,2941.4,2941.2,0.00823476]
[1644655820687,0.38841731,2941.4,2941.1,0.02063558]
[1644655820925,0.1489,2941.3,2941.2,0.00823476]
[1644655821128,1.01455912,2941.3,2941.2,0.00823476]
[1644655821327,1.31455912,2941.3,2941.2,0.00823476]
[1644655821531,0.1499,2941.3,2941.2,0.00823476]
[1644655821826,0.1499,2941.3,2941.1,0.02063558]
[1644655822025,0.001,2941.3,2941.1,0.02887607]
[1644655822426,0.90227643,2941.4,2941.1,0.02887607]
[1644655822926,0.90227643,2941.4,2941.1,0.02063558]
[1644655823228,0.03661731,2941.4,2941.1,0.02836011]
[1644655824230,0.03661731,2941.4,2941.3,0.77600837]
[1644655824684,0.03661731,2941.4,2941.1,0.02836011]
[1644655825273,0.03661731,2941.4,2941.1,0.02063558]
[1644655825674,0.03661731,2941.4,2941.1,0.02837701]
[1644655826072,0.03661731,2941.4,2941.2,0.8892403]
[1644655826872,0.03661731,2941.4,2941.2,0.89701086]
[1644655827772,0.03661731,2941.4,2941.2,0.8892403]
[1644655828179,0.02756115,2941.4,2941.2,0.89701086]
[1644655828427,0.02756115,2941.4,2941.2,0.00777056]
[1644655828929,0.02756115,2941.4,2941.1,0.02063558]
[1644655829338,0.02756115,2941.4,2941.2,0.00776787]
[1644655829339,0.63310635,2941.3,2941.2,0.00776787]
[1644655829530,1.64730563,2941.3,2941.2,0.00776787]
[1644655829731,0.1501,2941.3,2941.2,0.00776787]
[1644655830128,0.1491,2941.3,2941.2,0.00776787]
[1644655830333,0.1491,2941.3,2941.1,0.02063558]
[1644655830530,0.03779359,2941.4,2941.1,0.02840038]
[1644655830829,0.76337882,2941.2,2941.1,0.02840038]
[1644655831430,0.76337882,2941.2,2941.1,0.02063558]
[1644655831933,0.03779359,2941.4,2941.1,0.02063558]
[1644655832973,0.03679359,2941.4,2941.1,0.02840076]
[1644655833372,0.73006543,2941.3,2941.1,0.02840076]
[1644655833777,0.73006543,2941.3,2941.1,0.02063558]
[1644655833977,0.03779359,2941.4,2941.1,0.02840121]
[1644655834181,0.03679359,2941.4,2941.1,0.02840121]
[1644655834979,0.86509928,2941.7,2941.2,0.83364682]
[1644655835179,0.00776414,2941.6,2941.2,0.83364682]
[1644655836228,0.001,2941.8,2941.2,0.83364682]
[1644655836429,0.00776435,2941.6,2941.3,0.00776539]
[1644655836936,0.00776435,2941.6,2940.9,0.1698]
[1644655836937,4.16409928,2941.5,2940.0,15.85529239]
[1644655837139,4.16409928,2941.5,2939.1,0.64469723]
[1644655837140,5.0,2940.1,2939.1,0.64469723]
[1644655837335,5.0,2940.1,2939.2,1.44770357]
[1644655837336,3.67,2940.0,2939.2,1.44770357]
[1644655837637,3.67,2940.0,2938.9,0.27513968]
[1644655837638,6.141,2939.3,2938.9,0.27513968]
[1644655837830,2.16226233,2940.0,2939.2,0.64943865]
[1644655838033,1.03481417,2939.9,2939.3,4.94771334]
[1644655838231,7.0,2939.9,2939.4,1.42716038]
[1644655838435,7.0,2939.9,2939.2,0.64943865]
[1644655838436,0.07238182,2939.8,2939.5,3.5]
[1644655838634,0.07238182,2939.8,2939.6,1.35922148]
[1644655838833,0.18602222,2939.5,2939.3,3.5]
[1644655839033,0.64873559,2940.1,2939.3,3.5]
[1644655839235,1.8328,2940.7,2939.2,0.94943865]
[1644655839236,0.64873559,2940.3,2939.2,0.94943865]
[1644655839441,0.64873559,2940.3,2939.4,0.85055]
[1644655839689,0.64873559,2940.2,2939.2,0.94943865]
[1644655839875,0.17,2940.6,2939.2,0.94943865]
[1644655839876,0.64873559,2940.3,2939.2,0.94943865]
[1644655840175,0.001,2940.4,2939.2,0.94943865]
[1644655840176,0.64873559,2940.4,2939.2,0.94943865]
[1644655840375,0.64873559,2940.5,2940.4,0.67480717]
[1644655840575,0.171,2940.6,2940.4,0.67480717]
[1644655840776,1.03581417,2940.6,2940.4,0.67480717]
[1644655840974,0.001,2940.5,2940.4,0.67480717]
[1644655841178,0.64740752,2940.5,2940.4,0.68362206]
[1644655841374,0.001,2940.6,2940.4,0.00881489]
[1644655841578,0.86581417,2940.6,2940.4,0.00881489]
[1644655842208,1.03481417,2940.5,2939.7,0.17]
[1644655842383,0.64741194,2940.3,2939.7,0.17]
[1644655842590,0.64741194,2940.0,2939.7,0.17]
[1644655842775,1.13841194,2939.9,2939.7,0.17]
[1644655842977,0.491,2939.9,2939.7,0.17]
[1644655843631,0.491,2939.9,2939.8,0.88776515]
[1644655849981,0.53043157,2939.9,2939.8,0.88776515]
[1644655853062,0.03943157,2939.9,2939.8,0.88776515]
[1644655858931,0.03943157,2939.9,2939.8,0.77084243]
[1644655859132,0.13075705,2939.9,2939.8,0.77084243]
[1644655860137,1.03305705,2939.9,2939.3,0.00400179]
[1644655860337,0.64544163,2939.5,2939.3,0.00400179]
[1644655860541,0.491,2939.4,2939.2,0.17400179]
[1644655860733,1.22776711,2939.4,2939.2,0.17400179]
[1644655860934,0.09132548,2939.3,2938.9,0.00400179]
[1644655861139,0.86481417,2939.1,2938.9,0.00400179]
[1644655861335,0.26142548,2939.3,2938.3,0.00400179]
[1644655861336,0.58232548,2939.0,2938.3,0.00400179]
[1644655861535,0.58232548,2938.9,2938.3,0.00400179]
[1644655861734,0.58232548,2938.8,2938.3,0.00400179]
[1644655861933,1.94997201,2939.3,2938.3,0.00400179]
[1644655861934,0.58232548,2938.7,2938.3,0.00400179]
[1644655862207,0.09132548,2938.6,2938.3,0.00400179]
[1644655862395,0.491,2938.7,2938.3,0.00400179]
[1644655862796,0.491,2938.7,2938.3,0.01282644]
[1644655863796,0.491,2938.7,2938.3,0.00400179]
[1644655863995,0.491,2938.7,2938.4,0.0088246]
[1644655864196,0.09298822,2938.6,2938.4,0.0088246]
[1644655864799,0.09298822,2938.5,2938.4,0.0088246]
[1644655864998,0.09298822,2938.5,2938.3,0.00400179]
[1644655864999,0.53158133,2938.9,2938.3,0.00400179]
[1644655865197,0.09288188,2938.8,2938.4,0.0088246]
[1644655866125,0.09288188,2938.8,2938.3,0.00400179]
[1644655866526,0.58388188,2938.8,2938.5,0.00882448]
[1644655866725,0.09288188,2938.7,2938.5,0.00882448]
[1644655867125,0.491,2938.8,2938.5,0.00882448]
[1644655867324,0.491,2938.8,2938.3,0.00400179]
[1644655867724,0.491,2938.8,2938.5,0.00882448]
[1644655867923,0.491,2938.8,2938.7,0.64673048]
[1644655868124,0.58378903,2938.8,2938.7,0.64673048]
[1644655869893,0.02095815,2938.9,2938.7,0.64673048]
[1644655870090,0.02095815,2938.9,2938.7,0.94673048]
[1644655870286,0.02095815,2938.9,2938.7,1.11683048]
[1644655871286,0.02095815,2938.9,2938.7,1.12565474]
[1644655872088,0.02095815,2938.9,2938.7,4.57008041]
[1644655872289,0.02095815,2938.9,2938.8,3.3425346]
[1644655872690,0.02095815,2938.9,2938.8,4.3425346]
[1644655873195,0.02095815,2938.9,2938.8,1.0]
[1644655873455,0.02095815,2938.9,2938.7,1.12083227]
[1644655873661,0.02095815,2938.9,2938.7,1.12965647]
[1644655874560,0.02095815,2938.9,2938.8,3.34425754]
[1644655874757,0.02095815,2938.9,2938.8,0.1701]
[1644655874960,0.1701,2939.9,2939.6,0.63759529]
[1644655875160,0.09119025,2939.8,2939.6,0.63759529]
[1644655875358,0.09119025,2939.8,2939.6,0.64159708]
[1644655875559,0.09119025,2939.8,2939.6,0.63759529]
[1644655876164,0.09119025,2939.8,2939.6,0.64612081]
[1644655876560,0.09119025,2939.8,2939.6,0.00852552]
[1644655876763,0.1701,2939.9,2939.6,0.00852552]
[1644655877194,0.1701,2939.9,2939.3,0.17]
[1644655877381,0.1701,2939.9,2939.6,0.00852552]
[1644655877787,0.001,2940.5,2939.8,4.15044]
[1644655877986,0.79517201,2941.0,2939.8,1.15444179]
[1644655878185,0.64677201,2941.0,2939.9,1.17]
[1644655878383,0.001,2941.0,2939.9,0.17]
[1644655878587,0.001,2941.0,2940.0,0.00828399]
[1644655878793,0.1494,2941.0,2940.1,0.85033]
[1644655878987,0.1494,2941.0,2940.0,3.46542837]
[1644655879189,0.64577201,2940.9,2939.9,0.17]
[1644655879390,0.64577201,2940.8,2939.9,0.47]
[1644655879792,0.64577201,2940.8,2940.0,0.79914476]
[1644655880191,0.64577201,2940.7,2940.0,0.79914476]
[1644655880389,0.64577201,2940.7,2939.9,0.17]
[1644655880592,0.64577201,2940.7,2939.6,3.60272652]
[1644655880791,0.64577201,2940.7,2939.7,0.00400179]
[1644655881436,0.64577201,2940.5,2939.9,0.84188798]
[1644655881634,0.64577201,2940.6,2939.9,0.84188798]
[1644655882235,0.64577201,2940.6,2939.9,0.85071126]
[1644655883035,0.64577201,2940.6,2939.9,0.84188798]
[1644655883235,0.64577201,2940.6,2939.9,0.85071136]
[1644655884238,0.64577201,2940.6,2939.9,0.84188798]
[1644655884438,0.64577201,2940.6,2939.9,0.85071136]
[1644655885081,0.64577201,2940.6,2940.0,0.02670529]
[1644655887285,1.16582097,2940.6,2940.0,0.02670529]
[1644655887485,0.001,2940.5,2940.0,0.02670529]
[1644655887987,1.16682097,2940.6,2940.0,0.02670529]
[1644655888285,0.001,2940.5,2940.0,0.02670529]
[1644655889340,0.52004896,2940.6,2940.0,0.02670529]
[1644655889341,0.52104896,2940.6,2940.0,0.02670529]
[1644655889741,1.16682097,2940.6,2940.0,0.02670529]
[1644655889940,0.001,2940.5,2940.0,0.02670529]
[1644655892481,0.64677201,2940.5,2940.0,0.02670529]
[1644655893378,0.001,2940.5,2940.0,0.02670529]
[1644655893588,0.64577201,2940.4,2940.0,0.02670529]
[1644655893886,0.64577201,2940.3,2940.0,0.02670529]
[1644655894087,0.81577201,2940.2,2940.0,0.02670529]
[1644655895086,0.81577201,2940.2,2939.7,0.00400179]
[1644655895087,4.12044731,2940.2,2939.7,0.00400179]
[1644655895287,0.64577201,2940.1,2939.9,0.00883056]
[1644655895928,0.81577201,2940.2,2939.9,0.00883056]
[1644655896132,0.17,2940.2,2939.9,0.00883056]
[1644655896331,0.64677201,2940.3,2939.8,0.78096644]
[1644655896531,0.02159588,2940.4,2939.9,0.00883046]
[1644655896730,0.09779197,2940.3,2939.9,0.00883046]
[1644655897036,0.09778587,2940.2,2939.9,0.00883046]
[1644655897230,0.09778587,2940.1,2939.9,0.00883046]
[1644655897529,0.02159588,2940.4,2939.8,1.08096644]
[1644655897530,0.09778587,2940.0,2939.8,1.08096644]
[1644655897731,0.02159588,2940.4,2939.9,0.00883046]
[1644655897930,0.09778666,2940.3,2939.9,0.00883046]
[1644655898735,0.09778666,2940.3,2939.8,1.08096644]
[1644655898934,0.09778666,2940.3,2939.8,0.94254156]
[1644655899780,0.11935474,2940.3,2939.8,0.94254156]
[1644655900179,0.09778666,2940.2,2939.8,0.94254156]
[1644655900783,0.09778666,2940.2,2939.8,0.78096644]
[1644655901385,0.09778666,2940.2,2939.8,0.78426928]
[1644655901887,0.09778666,2940.2,2939.8,0.00330284]
[1644655902093,0.02156808,2940.3,2939.8,0.00330284]
[1644655902288,0.09778666,2940.2,2939.7,0.00400179]
[1644655902685,0.09778666,2940.2,2939.8,0.00883067]
[1644655902686,0.00882949,2940.1,2939.8,0.00883067]
[1644655902885,0.09778666,2940.0,2939.8,0.00883067]
[1644655903553,0.09778666,2940.0,2939.7,0.8895292]
[1644655903752,0.09778666,2939.9,2939.8,0.00883048]
[1644655903953,0.09778666,2940.0,2939.8,0.00883048]
[1644655904760,0.09778666,2940.0,2939.7,1.1895292]
[1644655904761,0.09778666,2940.0,2939.7,0.8895292]
[1644655904951,0.09778666,2940.0,2939.9,0.03204758]
[1644655907397,0.65460143,2940.1,2939.9,0.03204758]
[1644655907590,0.09778666,2940.0,2939.9,0.03204758]
[1644655908189,0.00882942,2940.1,2939.9,0.03204758]
[1644655908390,0.09778666,2940.0,2939.9,0.03204758]
[1644655909397,0.00882942,2940.1,2939.9,0.03204758]
[1644655909598,0.26778666,2940.2,2939.9,0.03204758]
[1644655909799,0.00882942,2940.1,2939.9,0.03204758]
[1644655910005,0.09778666,2940.0,2939.9,0.03204758]
[1644655910298,0.10661608,2940.1,2939.9,0.03204758]
[1644655910499,0.09778666,2940.0,2939.9,0.03204758]
[1644655910932,0.64577201,2940.3,2939.9,0.03204758]
[1644655910933,0.00882949,2940.1,2939.9,0.03204758]
[1644655911135,0.09778666,2940.0,2939.9,0.03204758]
[1644655911535,0.00882949,2940.1,2939.9,0.03204758]
[1644655911736,0.09778666,2940.0,2939.9,0.03204758]
[1644655912141,0.00882949,2940.1,2939.9,0.03204758]
[1644655912437,0.09778666,2940.0,2939.9,0.03204758]
[1644655912643,0.00882949,2940.1,2939.9,0.03204758]
[1644655912837,0.09778666,2940.0,2939.9,0.03204758]
[1644655913236,0.64577201,2940.2,2939.9,0.03204758]
[1644655913436,0.00882949,2940.1,2939.9,0.03204758]
[1644655913638,0.09778666,2940.0,2939.9,0.03204758]
[1644655914037,0.00882949,2940.1,2939.9,0.03204758]
[1644655914238,0.09778666,2940.0,2939.9,0.03204758]
[1644655914437,0.64577201,2940.2,2939.9,0.03204758]
[1644655914691,0.75238809,2940.1,2939.9,0.03204758]
[1644655914880,0.09778666,2940.0,2939.9,0.03204758]
[1644655915286,0.74355867,2940.0,2939.9,0.03204758]
[1644655916182,0.64577201,2940.0,2939.9,0.03204758]
[1644655916380,0.74355867,2940.0,2939.9,0.03204758]
[1644655916782,0.64577201,2940.0,2939.9,0.03204758]
[1644655917181,0.74355867,2940.0,2939.9,0.03204758]
[1644655917382,0.64577201,2940.0,2939.9,0.03204758]
[1644655917886,0.74355867,2940.0,2939.9,0.03204758]
[1644655918085,0.64577201,2940.0,2939.9,0.03204758]
[1644655918281,0.74355867,2940.0,2939.9,0.03204758]
[1644655918533,0.64577201,2940.0,2939.9,0.03204758]
[1644655918737,0.74355867,2940.0,2939.9,0.03204758]
[1644655918932,0.64577201,2940.0,2939.9,0.03204758]
[1644655919133,0.64577201,2940.0,2939.9,0.02558831]
[1644655919334,0.09778666,2940.0,2939.9,0.02558831]
[1644655919738,0.64577201,2940.0,2939.9,0.03210825]
[1644655919937,0.74355867,2940.0,2939.9,0.03210825]
[1644655920140,0.64577201,2940.0,2939.9,0.03210825]
[1644655920339,0.09778666,2940.0,2939.9,0.03210825]
[1644655920546,1.03481417,2940.2,2939.9,0.03210825]
[1644655920740,0.09778666,2940.1,2939.9,0.03210825]
[1644655921039,0.96260083,2940.2,2939.9,0.03210825]
[1644655921640,0.9681478,2940.2,2939.9,0.03210825]
[1644655922686,0.96260083,2940.2,2939.9,0.03210825]
[1644655922882,0.9681478,2940.2,2939.9,0.03210825]
[1644655923284,0.09778666,2940.1,2939.9,0.03210825]
[1644655923487,0.09778666,2940.0,2939.9,0.03210825]
[1644655923987,0.86481417,2940.2,2939.9,0.03210825]
[1644655924190,0.9714435,2940.1,2939.9,0.03210825]
[1644655924391,0.09778666,2940.0,2939.9,0.03210825]
[1644655924590,0.87365684,2940.1,2939.9,0.03210825]
[1644655924787,0.09778666,2940.0,2939.9,0.03210825]
[1644655924989,0.87365684,2940.1,2939.8,0.00884383]
[1644655924990,0.8919481,2940.1,2939.8,0.00884383]
[1644655925189,0.88310543,2940.1,2939.4,0.00400179]
[1644655925389,0.09778666,2940.0,2939.8,0.00884383]
[1644655925698,0.64995601,2939.9,2939.8,0.00884383]
[1644655926329,0.64995601,2939.9,2939.4,0.00400179]
[1644655926529,0.64995601,2939.9,2939.7,0.00884379]
[1644655927330,0.64995601,2939.9,2939.8,1.33652379]
[1644655927534,0.09778666,2939.9,2939.8,1.33652379]
[1644655927935,0.74774267,2940.0,2939.7,0.00884385]
[1644655928134,0.74774267,2940.0,2939.8,1.33652379]
[1644655928736,0.64995601,2939.9,2939.4,0.00400179]
[1644655928935,0.74779779,2939.8,2939.5,1.33164554]
[1644655929137,0.09778666,2939.7,2939.5,1.33164554]
[1644655929335,0.09778666,2939.6,2939.5,1.33164554]
[1644655929782,0.66823288,2939.8,2939.5,1.33164554]
[1644655929982,0.09778666,2939.7,2939.5,1.33164554]
[1644655931386,0.09778666,2939.7,2939.5,1.34048961]
[1644655931582,0.09778666,2939.7,2939.6,1.33164554]
[1644655932582,0.09778666,2939.7,2939.5,0.00884402]
[1644655932783,0.09778666,2939.7,2939.6,1.33164554]
[1644655934934,0.09778666,2939.7,2939.5,1.34048956]
[1644655935135,0.09778666,2939.7,2939.6,1.33164554]
[1644655935335,0.1171822,2939.7,2939.6,4.65011136]
[1644655935537,0.1171822,2939.7,2939.6,1.33164554]
[1644655939085,0.1171822,2939.7,2939.5,0.00884402]
[1644655939286,0.09778666,2939.6,2939.5,0.00884402]
[1644655939486,0.09778666,2939.6,2939.5,1.33214622]
[1644655939686,0.09778666,2939.6,2939.4,3.23905268]
[1644655939887,0.09778666,2939.6,2939.5,1.34088138]
[1644655940088,0.09778666,2939.6,2939.5,0.00884407]
[1644655940487,0.09778666,2939.6,2939.5,1.34107667]
[1644655940687,0.09778666,2939.6,2939.5,1.3322326]
[1644655942234,0.09778666,2939.6,2939.5,1.33231061]
[1644655942435,0.09778666,2939.6,2939.4,0.01284592]
[1644655942634,0.09778666,2939.6,2939.5,1.33232945]
[1644655942834,0.09778666,2939.6,2939.5,1.33240647]
[1644655944895,0.11596205,2939.6,2939.5,1.33240647]
[1644655945296,0.87365609,2940.1,2939.6,3.3]
[1644655945500,5.01224551,2941.5,2939.6,3.3]
[1644655945501,0.17,2940.3,2939.7,3.3]
[1644655945698,0.17,2940.3,2939.7,1.77]
[1644655945999,0.00884192,2940.1,2939.7,1.77]
[1644655946398,0.17,2940.3,2940.1,0.00788392]
[1644655946603,0.17,2940.3,2940.2,0.72880029]
[1644655950145,0.17,2940.3,2940.2,0.75839674]
[1644655951349,0.17,2940.3,2940.2,4.12819855]
[1644655951754,0.17,2940.3,2940.2,0.75839674]
[1644655955094,0.17,2940.3,2940.2,0.72880029]
[1644655956835,0.00884246,2940.4,2940.2,0.72880029]
[1644655957637,0.52104896,2940.6,2940.2,0.72880029]
[1644655957836,0.0088424,2940.4,2940.2,0.72880029]
[1644655958841,0.001,2940.5,2940.2,0.72880029]
[1644655959044,0.0088424,2940.4,2940.2,0.72880029]
[1644655959886,0.52004896,2940.6,2940.2,0.72880029]
[1644655960290,0.0088424,2940.4,2940.2,0.72880029]
[1644655961190,0.52104896,2940.6,2940.2,0.72880029]
[1644655961391,0.0088424,2940.4,2940.2,0.72880029]
[1644655962388,0.52104896,2940.6,2940.2,0.72880029]
[1644655962589,0.0088424,2940.4,2940.2,0.72880029]
[1644655963646,0.52104896,2940.6,2940.2,0.72880029]
[1644655964037,0.0088424,2940.4,2940.2,0.72880029]
[1644655964845,0.52104896,2940.6,2940.1,0.03726836]
[1644655965040,0.0088424,2940.4,2940.1,0.03726836]
[1644655965239,0.0088424,2940.4,2940.1,0.00788392]
[1644655965443,0.07821016,2940.3,2940.1,0.00788392]
[1644655965938,0.07821016,2940.3,2940.2,0.7951024]
[1644655966138,0.00854407,2940.3,2940.2,0.7951024]
[1644655966342,0.08675423,2940.3,2940.2,0.70791818]
[1644655967286,0.07821016,2940.3,2940.2,0.70791818]
[1644655968691,0.001,2940.5,2940.2,0.70791818]
[1644655968692,0.00854402,2940.4,2940.2,0.70791818]
[1644655968891,0.07821016,2940.3,2940.2,0.70791818]
[1644655969293,0.00854402,2940.4,2940.2,0.70791818]
[1644655969496,0.17,2940.8,2940.4,3.2]
[1644655969698,0.32111963,2941.1,2940.5,0.85015]
[1644655969894,0.32111963,2941.1,2940.5,1.15015]
[1644655970100,0.32111963,2941.1,2940.5,1.32015]
[1644655970101,0.03320765,2941.0,2940.5,1.32015]
[1644655970293,0.03320765,2941.0,2940.5,1.62015]
[1644655970493,0.03320765,2941.0,2940.6,2.41304432]
[1644655970793,0.32111963,2941.1,2940.7,0.3]
[1644655971044,0.00552792,2940.9,2940.7,0.3]
[1644655971244,0.00552792,2940.9,2940.7,1.47]
[1644655971443,0.00552792,2940.9,2940.7,1.77]
[1644655971644,0.00552792,2940.9,2940.8,3.50291472]
[1644655971846,0.00552792,2940.9,2940.8,4.50291472]
[1644655972045,0.32111963,2941.1,2940.8,4.50291472]
[1644655972246,0.00552792,2941.0,2940.8,4.50291472]
[1644655972447,0.00552792,2941.0,2940.9,4.40772935]
[1644655972649,0.00552792,2941.0,2940.9,5.00772935]
[1644655973245,0.32111963,2941.1,2940.9,3.40772935]
[1644655973445,0.3299613,2941.1,2940.9,3.70772935]
[1644655973648,0.3299613,2941.1,2941.0,1.0]
[1644655973847,0.3299613,2941.1,2941.0,3.27543255]
[1644655974448,0.32111963,2941.1,2941.0,3.27543255]
[1644655975297,0.00821189,2941.2,2941.1,2.7]
[1644655975492,0.86736537,2941.9,2941.1,2.7]
[1644655975493,0.001,2941.8,2941.1,2.7]
[1644655975690,0.001,2942.1,2941.2,0.1698]
[1644655975890,0.03284263,2941.6,2941.2,1.0]
[1644655976089,0.03284263,2941.6,2941.1,1.0]
[1644655976290,0.03284263,2941.6,2940.9,1.1501]
[1644655976890,0.86736537,2941.8,2940.9,1.1501]
[1644655977090,0.00821166,2941.4,2940.9,1.1501]
[1644655977492,0.00821166,2941.4,2941.0,0.73323967]
[1644655977895,0.86736537,2941.7,2941.0,0.73323967]
[1644655978292,0.00821172,2941.3,2941.0,0.73323967]
[1644655978548,0.00821172,2941.3,2940.8,0.02932824]
[1644655979147,0.86736537,2941.4,2940.8,0.02932824]
[1644655979550,0.647394,2941.1,2940.8,0.02932824]
[1644655979747,0.647394,2941.1,2940.8,0.74792815]
[1644655980147,0.00827405,2941.2,2940.8,0.74792815]
[1644655980347,0.86736537,2941.4,2940.8,0.74792815]
[1644655980552,0.00827416,2941.1,2940.8,0.74792815]
[1644655981348,0.00827416,2941.1,2940.5,0.27953795]
[1644655981554,0.86736537,2941.4,2940.5,0.27953795]
[1644655981555,0.86736537,2941.2,2940.5,0.02953795]
[1644655981750,0.86736537,2941.0,2940.5,0.02953795]
[1644655981949,0.17,2940.9,2940.5,0.02953795]
[1644655982789,1.03736537,2940.9,2940.5,0.02953795]
[1644655982991,0.00827485,2940.8,2940.5,0.02953795]
[1644655983895,0.86736537,2940.9,2940.5,0.02953795]
[1644655984397,0.0082749,2940.8,2940.5,0.02953795]
[1644655984995,0.0082749,2940.8,2940.1,0.01616079]
[1644655985197,0.86736537,2940.9,2940.1,0.00788392]
[1644655985397,0.86736537,2940.7,2940.1,0.01616079]
[1644655986437,0.86736537,2940.7,2940.1,0.00788392]
[1644655986635,0.00826876,2940.5,2940.1,0.01615395]
[1644655987634,0.86736537,2940.8,2940.1,0.00788392]
[1644655987836,0.0082686,2940.5,2940.1,0.01615378]
[1644655988842,0.17,2940.6,2940.1,0.00788392]
[1644655989043,0.0082686,2940.5,2940.1,0.01615378]
[1644655990084,0.17,2940.6,2940.1,0.00788392]
[1644655990288,0.00826903,2940.5,2940.1,0.01615422]
[1644655991285,0.17,2940.6,2940.1,0.00788392]
[1644655991485,0.00826903,2940.5,2940.1,0.01615422]
[1644655992287,0.8756344,2940.5,2940.1,0.01615422]
[1644655992489,0.86736537,2940.6,2940.1,0.00788392]
[1644655992686,0.00826903,2940.5,2940.1,0.01615422]
[1644655993542,0.86736537,2940.6,2940.1,0.00788392]
[1644655994039,0.008269,2940.5,2940.1,0.01615418]
[1644655994437,0.87563437,2940.5,2940.1,0.01615418]
[1644655994638,0.008269,2940.5,2940.1,0.01615418]
[1644655994838,0.86736537,2940.6,2940.1,0.00788392]
[1644655995038,0.008269,2940.5,2940.1,0.01615418]
[1644655995438,0.008269,2940.5,2940.2,0.02683464]
[1644655996043,0.86736537,2940.7,2940.2,0.02683464]
[1644655996239,1.491,2940.8,2940.2,0.02683464]
[1644655996240,0.00826908,2940.5,2940.2,0.02683464]
[1644655997188,0.86736537,2940.6,2940.2,0.02683464]
[1644655997389,0.00828231,2940.5,2940.2,0.02683464]
[1644655998393,0.86736537,2940.6,2940.2,0.02683464]
[1644655998697,0.00828231,2940.5,2940.2,0.02683464]
[1644655999092,0.00828231,2940.5,2940.2,0.02562937]